Workbook

Sheet Produktionsanlæg
A1: Produktionsanlæg | B1: Enhed | C1: Standard-levetid | D1: Samlet mængde per 31/12-2022 | E1: Samlet mængde per 31/12-2023 | F1: Samlet mængde per 31/12-2024 | G1: Afvigelse 2022-2023 | H1: Afvigelse 2023-2024 | I1: Bemærkninger
A3: Renseanlæg 1 | G3: =IF(D3="",IF(E3>0,"Ny data",IF(E3="","",0)),IF(D3=0,IF(E3=0,0,"Ny data"),(E3-D3)/D3)) ->  | H3: =IF(E3="",IF(F3>0,"Ny data",IF(F3="","",0)),IF(E3=0,IF(F3=0,0,"Ny data"),(F3-E3)/E3)) -> 
A4: Mindre renseanlæg
A5: Mindre renseanlæg < 5.000 PE | B5: PE | C5: 40 | D5: 0 | G5: 0
A6: Renseanlæg >= 5.000 PE, Vandbehandling
A7: Indløb med riste, Konstruktioner | B7: PE | C7: 60 | D7: 1033043 | E7: 1033043 | F7: 1033043 | G7: 0 | H7: 0
A8: Indløb med riste, Mek/EL | B8: PE | C8: 20 | D8: 1033043 | E8: 1033043 | F8: 1033043 | G8: 0 | H8: 0
A9: Indløb med riste, SRO | B9: PE | C9: 10 | D9: 1033043 | E9: 1033043 | F9: 1033043 | G9: 0 | H9: 0
A10: Sand- og fedtfang, Kontruktioner | B10: PE | C10: 60 | D10: 573913 | E10: 573913 | F10: 573913 | G10: 0 | H10: 0
A11: Sand- og fedtfang, Mek/EL | B11: PE | C11: 20 | D11: 573913 | E11: 573913 | F11: 573913 | G11: 0 | H11: 0
A12: Sand- og fedtfang, SRO | B12: PE | C12: 10 | D12: 573913 | E12: 573913 | F12: 573913 | G12: 0 | H12: 0
A13: Forklaring, Konstruktioner | B13: PE | C13: 60 | D13: 0 | E13: 0 | F13: 0 | G13: 0 | H13: 0
A14: Forklaring, Mek/EL | B14: PE | C14: 20 | D14: 0 | E14: 0 | F14: 0 | G14: 0 | H14: 0
A15: Forklaring, SRO | B15: PE | C15: 10 | D15: 0 | E15: 0 | F15: 0 | G15: 0 | H15: 0
A16: Beluftningstanke, Konstruktioner | B16: PE | C16: 60 | D16: 104500 | E16: 104500 | F16: 104500 | G16: 0 | H16: 0
A17: Beluftningstanke, Mek/EL | B17: PE | C17: 20 | D17: 104500 | E17: 104500 | F17: 104500 | G17: 0 | H17: 0
A18: Beluftningstanke, SRO | B18: PE | C18: 10 | D18: 104500 | E18: 104500 | F18: 104500 | G18: 0 | H18: 0
A19: Efterklaringstanke, Konstruktioner | B19: PE | C19: 60 | D19: 282021 | E19: 282021 | F19: 282021 | G19: 0 | H19: 0
A20: Efterklaringstanke, Mek/El | B20: PE | C20: 20 | D20: 282021 | E20: 282021 | F20: 282021 | G20: 0 | H20: 0
A21: Efterklaringstanke, SRO | B21: PE | C21: 10 | D21: 282021 | E21: 282021 | F21: 282021 | G21: 0 | H21: 0
A22: Efterbehandlingsanlæg (sandfilter), Konstruktioner | B22: PE | C22: 60 | D22: 0 | E22: 0 | F22: 0 | G22: 0 | H22: 0
A23: Efterbehandlingsanlæg (sandfilter), Mek/EL | B23: PE | C23: 20 | D23: 0 | E23: 0 | F23: 0 | G23: 0 | H23: 0
A24: Efterbehandlingsanlæg (sandfilter), SRO | B24: PE | C24: 10 | D24: 0 | E24: 0 | F24: 0 | G24: 0 | H24: 0
A25: Renseanlæg >= 5.000 PE, Slambehandling
A26: Forafvanding, slam, Konstruktion | B26: PE | C26: 60 | D26: 338462 | E26: 338462 | F26: 338462 | G26: 0 | H26: 0
A27: Forafvanding, slam, Mek/EL | B27: PE | C27: 20 | D27: 338462 | E27: 338462 | F27: 338462 | G27: 0 | H27: 0
A28: Forafvanding, slam, SRO | B28: PE | C28: 10 | D28: 338462 | E28: 338462 | F28: 338462 | G28: 0 | H28: 0
A29: Rådnetanke, slam, Konstruktioner | B29: PE | C29: 60 | D29: 291738 | E29: 291738 | F29: 291738 | G29: 0 | H29: 0
A30: Rådnetanke, slam, Mek/EL | B30: PE | C30: 20 | D30: 291738 | E30: 291738 | F30: 291738 | G30: 0 | H30: 0
A31: Rådnetanke, slam, SRO | B31: PE | C31: 10 | D31: 291738 | E31: 291738 | F31: 291738 | G31: 0 | H31: 0
A32: Gasdisponering, Konstruktioner | B32: PE | C32: 60 | D32: 104500 | E32: 104500 | F32: 104500 | G32: 0 | H32: 0
A33: Gasdisponering, Mek/EL | B33: PE | C33: 20 | D33: 104500 | E33: 104500 | F33: 104500 | G33: 0 | H33: 0
A34: Gasdisponering, SRO | B34: PE | C34: 10 | D34: 104500 | E34: 104500 | F34: 104500 | G34: 0 | H34: 0
A35: Gasdisponering - elproduktionsanlæg, Konstruktioner | B35: PE | C35: 60 | D35: 104500 | E35: 104500 | F35: 104500 | G35: 0 | H35: 0
A36: Gasdisponering - elproduktionsanlæg, Mek/EL | B36: PE | C36: 20 | D36: 104500 | E36: 104500 | F36: 104500 | G36: 0 | H36: 0
A37: Gasdisponering - elproduktionsanlæg, SRO | B37: PE | C37: 10 | D37: 104500 | E37: 104500 | F37: 104500 | G37: 0 | H37: 0
A38: Gasrensning - Aktivt kulfilter | B38: m3/t | C38: 15 | D38: 250 | E38: 250 | F38: 250 | G38: 0 | H38: 0
A39: Gasrensning - Biologisk skrubber | B39: m3/t | C39: 15 | D39: 0 | E39: 0 | F39: 0 | G39: 0 | H39: 0
A40: Opgraderingsanlæg - Membran | B40: m3/t | C40: 15 | D40: 0 | E40: 0 | F40: 0 | G40: 0 | H40: 0
A41: Varmeproduktionsanlæg | B41: m3/t | C41: 15 | D41: 0 | E41: 0 | F41: 0 | G41: 0 | H41: 0
A42: Slutafvanding, slam - lavteknologisk (slambede), Konstruktioner | B42: PE | C42: 60 | D42: 0 | E42: 0 | F42: 0 | G42: 0 | H42: 0
A43: Slutafvanding, slam - lavteknologisk (slambede), Mek/EL | B43: PE | C43: 20 | D43: 0 | E43: 0 | F43: 0 | G43: 0 | H43: 0
A44: Slutafvanding, slam - lavteknologisk (slambede), SRO | B44: PE | C44: 10 | D44: 0 | E44: 0 | F44: 0 | G44: 0 | H44: 0
A45: Slutafvanding, slam - højteknologisk (centrifuger), Konstruktioner | B45: PE | C45: 60 | D45: 430769 | E45: 430769 | F45: 430769 | G45: 0 | H45: 0
A46: Slutafvanding, slam - højteknologisk (centrifuger), Mek/El | B46: PE | C46: 20 | D46: 430769 | E46: 430769 | F46: 430769 | G46: 0 | H46: 0
A47: Slutafvanding, slam - højteknologisk (centrifuger), SRO | B47: PE | C47: 10 | D47: 430769 | E47: 430769 | F47: 430769 | G47: 0 | H47: 0
A48: Renseanlæg >= 5.000 PE, Slamdisponering
A49: Slutdisponering, slam - lavteknologisk (slammineralisering), Konstruktioner | B49: PE | C49: 60 | D49: 0 | E49: 0 | F49: 0 | G49: 0 | H49: 0
A50: Slutdisponering, slam - lavteknologisk (slammineralisering), Mek/EL | B50: PE | C50: 20 | D50: 0 | E50: 0 | F50: 0 | G50: 0 | H50: 0
A51: Slutdisponering, slam - lavteknologisk (slammineralisering), SRO | B51: PE | C51: 10 | D51: 0 | E51: 0 | F51: 0 | G51: 0 | H51: 0
A52: Slutdisponering, slam - højteknologisk (slamtørring), Konstruktioner | B52: PE | C52: 60 | D52: 0 | E52: 0 | F52: 0 | G52: 0 | H52: 0
A53: Slutdisponering, slam - højteknologisk (slamtørring), Mek/EL | B53: PE | C53: 20 | D53: 0 | E53: 0 | F53: 0 | G53: 0 | H53: 0
A54: Slutdisponering, slam - højteknologisk (slamtørring), SRO | B54: PE | C54: 10 | D54: 0 | E54: 0 | F54: 0 | G54: 0 | H54: 0
A55: Slutdisponering, slam - højteknologisk (slamtørring og -forbrænding), Konstruktioner | B55: PE | C55: 60 | D55: 0 | E55: 0 | F55: 0 | G55: 0 | H55: 0
A56: Slutdisponering, slam - højteknologisk (slamtørring og -forbrænding), Mek/EL | B56: PE | C56: 20 | D56: 0 | E56: 0 | F56: 0 | G56: 0 | H56: 0
A57: Slutdisponering, slam - højteknologisk (slamtørring og -forbrænding), SRO | B57: PE | C57: 10 | D57: 0 | E57: 0 | F57: 0 | G57: 0 | H57: 0
A58: Renseanlæg 2
A59: Mindre renseanlæg
A60: Mindre renseanlæg < 5.000 PE | B60: PE | C60: 40 | D60: 0 | E60: 0 | F60: 0 | G60: 0 | H60: 0
A61: Renseanlæg >= 5.000 PE, Vandbehandling
A62: Indløb med riste, Konstruktioner | B62: PE | C62: 60 | D62: 52174 | E62: 52174 | F62: 52174 | G62: 0 | H62: 0
A63: Indløb med riste, Mek/EL | B63: PE | C63: 20 | D63: 52174 | E63: 52174 | F63: 52174 | G63: 0 | H63: 0
A64: Indløb med riste, SRO | B64: PE | C64: 10 | D64: 52174 | E64: 52174 | F64: 52174 | G64: 0 | H64: 0
A65: Sand- og fedtfang, Kontruktioner | B65: PE | C65: 60 | D65: 52174 | E65: 52174 | F65: 52174 | G65: 0 | H65: 0
A66: Sand- og fedtfang, Mek/EL | B66: PE | C66: 20 | D66: 52174 | E66: 52174 | F66: 52174 | G66: 0 | H66: 0
A67: Sand- og fedtfang, SRO | B67: PE | C67: 10 | D67: 52174 | E67: 52174 | F67: 52174 | G67: =IF(D67="",IF(E67>0,"Ny data",IF(E67="","",0)),IF(D67=0,IF(E67=0,0,"Ny data"),(E67-D67)/D67)) -> 0 | H67: =IF(E67="",IF(F67>0,"Ny data",IF(F67="","",0)),IF(E67=0,IF(F67=0,0,"Ny data"),(F67-E67)/E67)) -> 0
A68: Forklaring, Konstruktioner | B68: PE | C68: 60 | D68: 0 | E68: 0 | F68: 0 | G68: 0 | H68: 0
A69: Forklaring, Mek/EL | B69: PE | C69: 20 | D69: 0 | E69: 0 | F69: 0 | G69: 0 | H69: 0
A70: Forklaring, SRO | B70: PE | C70: 10 | D70: 0 | E70: 0 | F70: 0 | G70: 0 | H70: 0
A71: Beluftningstanke, Konstruktioner | B71: PE | C71: 60 | D71: 7500 | E71: 7500 | F71: 7500 | G71: 0 | H71: 0
A72: Beluftningstanke, Mek/EL | B72: PE | C72: 20 | D72: 7500 | E72: 7500 | F72: 7500 | G72: 0 | H72: 0
A73: Beluftningstanke, SRO | B73: PE | C73: 10 | D73: 7500 | E73: 7500 | F73: 7500 | G73: 0 | H73: 0
A74: Efterklaringstanke, Konstruktioner | B74: PE | C74: 60 | D74: 7500 | E74: 7500 | F74: 7500 | G74: 0 | H74: 0
A75: Efterklaringstanke, Mek/El | B75: PE | C75: 20 | D75: 7500 | E75: 7500 | F75: 7500 | G75: 0 | H75: 0
A76: Efterklaringstanke, SRO | B76: PE | C76: 10 | D76: 7500 | E76: 7500 | F76: 7500 | G76: 0 | H76: 0
A77: Efterbehandlingsanlæg (sandfilter), Konstruktioner | B77: PE | C77: 60 | D77: 0 | E77: 0 | F77: 0 | G77: 0 | H77: 0
A78: Efterbehandlingsanlæg (sandfilter), Mek/EL | B78: PE | C78: 20 | D78: 0 | E78: 0 | F78: 0 | G78: 0 | H78: 0
A79: Efterbehandlingsanlæg (sandfilter), SRO | B79: PE | C79: 10 | D79: 0 | E79: 0 | F79: 0 | G79: 0 | H79: 0
A80: Renseanlæg >= 5.000 PE, Slambehandling
A81: Forafvanding, slam, Konstruktion | B81: PE | C81: 60 | D81: 0 | G81: 0
A82: Forafvanding, slam, Mek/EL | B82: PE | C82: 20 | D82: 0 | G82: 0
A83: Forafvanding, slam, SRO | B83: PE | C83: 10 | D83: 0 | G83: 0
A84: Rådnetanke, slam, Konstruktioner | B84: PE | C84: 60 | D84: 0 | G84: 0
A85: Rådnetanke, slam, Mek/EL | B85: PE | C85: 20 | D85: 0 | G85: 0
A86: Rådnetanke, slam, SRO | B86: PE | C86: 10 | D86: 0 | G86: 0
A87: Gasdisponering, Konstruktioner | B87: PE | C87: 60 | D87: 0 | G87: 0
A88: Gasdisponering, Mek/EL | B88: PE | C88: 20 | D88: 0 | G88: 0
A89: Gasdisponering, SRO | B89: PE | C89: 10 | D89: 0 | G89: 0
A90: Gasdisponering - elproduktionsanlæg, Konstruktioner | B90: PE | C90: 60 | D90: 0 | G90: 0
A91: Gasdisponering - elproduktionsanlæg, Mek/EL | B91: PE | C91: 20 | D91: 0 | G91: 0
A92: Gasdisponering - elproduktionsanlæg, SRO | B92: PE | C92: 10 | D92: 0 | G92: 0
A93: Gasrensning - Aktivt kulfilter | B93: m3/t | C93: 15 | D93: 0 | G93: 0
A94: Gasrensning - Biologisk skrubber | B94: m3/t | C94: 15 | D94: 0 | G94: 0
A95: Opgraderingsanlæg - Membran | B95: m3/t | C95: 15 | D95: 0 | G95: 0
A96: Varmeproduktionsanlæg | B96: m3/t | C96: 15 | D96: 0 | G96: 0
A97: Slutafvanding, slam - lavteknologisk (slambede), Konstruktioner | B97: PE | C97: 60 | D97: 9000 | E97: 9000 | F97: 9000 | G97: 0 | H97: 0
A98: Slutafvanding, slam - lavteknologisk (slambede), Mek/EL | B98: PE | C98: 20 | D98: 9000 | E98: 9000 | F98: 9000 | G98: 0 | H98: 0
A99: Slutafvanding, slam - lavteknologisk (slambede), SRO | B99: PE | C99: 10 | D99: 9000 | E99: 9000 | F99: 9000 | G99: 0 | H99: 0
A100: Slutafvanding, slam - højteknologisk (centrifuger), Konstruktioner | B100: PE | C100: 60 | D100: 0 | G100: 0
A101: Slutafvanding, slam - højteknologisk (centrifuger), Mek/El | B101: PE | C101: 20 | D101: 0 | G101: 0
A102: Slutafvanding, slam - højteknologisk (centrifuger), SRO | B102: PE | C102: 10 | D102: 0 | G102: 0
A103: Renseanlæg >= 5.000 PE, Slamdisponering
A104: Slutdisponering, slam - lavteknologisk (slammineralisering), Konstruktioner | B104: PE | C104: 60 | D104: 9000 | E104: 9000 | F104: 9000 | G104: 0 | H104: 0
A105: Slutdisponering, slam - lavteknologisk (slammineralisering), Mek/EL | B105: PE | C105: 20 | D105: 9000 | E105: 9000 | F105: 9000 | G105: 0 | H105: 0
A106: Slutdisponering, slam - lavteknologisk (slammineralisering), SRO | B106: PE | C106: 10 | D106: 9000 | E106: 9000 | F106: 9000 | G106: 0 | H106: 0
A107: Slutdisponering, slam - højteknologisk (slamtørring), Konstruktioner | B107: PE | C107: 60 | D107: 0 | G107: 0
A108: Slutdisponering, slam - højteknologisk (slamtørring), Mek/EL | B108: PE | C108: 20 | D108: 0 | G108: 0
A109: Slutdisponering, slam - højteknologisk (slamtørring), SRO | B109: PE | C109: 10 | D109: 0 | G109: 0
A110: Slutdisponering, slam - højteknologisk (slamtørring og -forbrænding), Konstruktioner | B110: PE | C110: 60 | D110: 0 | G110: 0
A111: Slutdisponering, slam - højteknologisk (slamtørring og -forbrænding), Mek/EL | B111: PE | C111: 20 | D111: 0 | G111: 0
A112: Slutdisponering, slam - højteknologisk (slamtørring og -forbrænding), SRO | B112: PE | C112: 10 | D112: 0 | G112: 0
A113: Renseanlæg 3
A114: Mindre renseanlæg
A115: Mindre renseanlæg < 5.000 PE | B115: PE | C115: 40 | D115: 0 | E115: 0 | F115: 0 | G115: 0 | H115: 0
A116: Renseanlæg >= 5.000 PE, Vandbehandling
A117: Indløb med riste, Konstruktioner | B117: PE | C117: 60 | D117: 52174 | E117: 52174 | F117: 52174 | G117: 0 | H117: 0
A118: Indløb med riste, Mek/EL | B118: PE | C118: 20 | D118: 52174 | E118: 52174 | F118: 52174 | G118: 0 | H118: 0
A119: Indløb med riste, SRO | B119: PE | C119: 10 | D119: 52174 | E119: 52174 | F119: 52174 | G119: 0 | H119: 0
A120: Sand- og fedtfang, Kontruktioner | B120: PE | C120: 60 | D120: 52174 | E120: 52174 | F120: 52174 | G120: 0 | H120: 0
A121: Sand- og fedtfang, Mek/EL | B121: PE | C121: 20 | D121: 52174 | E121: 52174 | F121: 52174 | G121: 0 | H121: 0
A122: Sand- og fedtfang, SRO | B122: PE | C122: 10 | D122: 52174 | E122: 52174 | F122: 52174 | G122: 0 | H122: 0
A123: Forklaring, Konstruktioner | B123: PE | C123: 60 | D123: 0 | E123: 0 | F123: 0 | G123: 0 | H123: 0
A124: Forklaring, Mek/EL | B124: PE | C124: 20 | D124: 0 | E124: 0 | F124: 0 | G124: 0 | H124: 0
A125: Forklaring, SRO | B125: PE | C125: 10 | D125: 0 | E125: 0 | F125: 0 | G125: 0 | H125: 0
A126: Beluftningstanke, Konstruktioner | B126: PE | C126: 60 | D126: 11500 | E126: 11500 | F126: 11500 | G126: 0 | H126: 0
A127: Beluftningstanke, Mek/EL | B127: PE | C127: 20 | D127: 11500 | E127: 11500 | F127: 11500 | G127: 0 | H127: 0
A128: Beluftningstanke, SRO | B128: PE | C128: 10 | D128: 11500 | E128: 11500 | F128: 11500 | G128: 0 | H128: 0
A129: Efterklaringstanke, Konstruktioner | B129: PE | C129: 60 | D129: 41739 | E129: 41739 | F129: 41739 | G129: 0 | H129: 0
A130: Efterklaringstanke, Mek/El | B130: PE | C130: 20 | D130: 41739 | E130: 41739 | F130: 41739 | G130: 0 | H130: 0
A131: Efterklaringstanke, SRO | B131: PE | C131: 10 | D131: 41739 | E131: 41739 | F131: 41739 | G131: =IF(D131="",IF(E131>0,"Ny data",IF(E131="","",0)),IF(D131=0,IF(E131=0,0,"Ny data"),(E131-D131)/D131)) -> 0 | H131: =IF(E131="",IF(F131>0,"Ny data",IF(F131="","",0)),IF(E131=0,IF(F131=0,0,"Ny data"),(F131-E131)/E131)) -> 0
A132: Efterbehandlingsanlæg (sandfilter), Konstruktioner | B132: PE | C132: 60 | D132: 0 | E132: 0 | F132: 0 | G132: 0 | H132: 0
A133: Efterbehandlingsanlæg (sandfilter), Mek/EL | B133: PE | C133: 20 | D133: 0 | E133: 0 | F133: 0 | G133: 0 | H133: 0
A134: Efterbehandlingsanlæg (sandfilter), SRO | B134: PE | C134: 10 | D134: 0 | E134: 0 | F134: 0 | G134: 0 | H134: 0
A135: Renseanlæg >= 5.000 PE, Slambehandling
A136: Forafvanding, slam, Konstruktion | B136: PE | C136: 60 | D136: 11500 | E136: 11500 | F136: 11500 | G136: 0 | H136: 0
A137: Forafvanding, slam, Mek/EL | B137: PE | C137: 20 | D137: 11500 | E137: 11500 | F137: 11500 | G137: 0 | H137: 0
A138: Forafvanding, slam, SRO | B138: PE | C138: 10 | D138: 11500 | E138: 11500 | F138: 11500 | G138: 0 | H138: 0
A139: Rådnetanke, slam, Konstruktioner | B139: PE | C139: 60 | D139: 0 | E139: 0 | F139: 0 | G139: 0 | H139: 0
A140: Rådnetanke, slam, Mek/EL | B140: PE | C140: 20 | D140: 0 | E140: 0 | F140: 0 | G140: 0 | H140: 0
A141: Rådnetanke, slam, SRO | B141: PE | C141: 10 | D141: 0 | E141: 0 | F141: 0 | G141: 0 | H141: 0
A142: Gasdisponering, Konstruktioner | B142: PE | C142: 60 | D142: 0 | E142: 0 | F142: 0 | G142: 0 | H142: 0
A143: Gasdisponering, Mek/EL | B143: PE | C143: 20 | D143: 0 | E143: 0 | F143: 0 | G143: 0 | H143: 0
A144: Gasdisponering, SRO | B144: PE | C144: 10 | D144: 0 | E144: 0 | F144: 0 | G144: 0 | H144: 0
A145: Gasdisponering - elproduktionsanlæg, Konstruktioner | B145: PE | C145: 60 | D145: 0 | E145: 0 | F145: 0 | G145: 0 | H145: 0
A146: Gasdisponering - elproduktionsanlæg, Mek/EL | B146: PE | C146: 20 | D146: 0 | E146: 0 | F146: 0 | G146: 0 | H146: 0
A147: Gasdisponering - elproduktionsanlæg, SRO | B147: PE | C147: 10 | D147: 0 | E147: 0 | F147: 0 | G147: 0 | H147: 0
A148: Gasrensning - Aktivt kulfilter | B148: m3/t | C148: 15 | D148: 0 | E148: 0 | F148: 0 | G148: 0 | H148: 0
A149: Gasrensning - Biologisk skrubber | B149: m3/t | C149: 15 | D149: 0 | E149: 0 | F149: 0 | G149: 0 | H149: 0
A150: Opgraderingsanlæg - Membran | B150: m3/t | C150: 15 | D150: 0 | E150: 0 | F150: 0 | G150: 0 | H150: 0
A151: Varmeproduktionsanlæg | B151: m3/t | C151: 15 | D151: 0 | E151: 0 | F151: 0 | G151: 0 | H151: 0
A152: Slutafvanding, slam - lavteknologisk (slambede), Konstruktioner | B152: PE | C152: 60 | D152: 0 | E152: 0 | F152: 0 | G152: 0 | H152: 0
A153: Slutafvanding, slam - lavteknologisk (slambede), Mek/EL | B153: PE | C153: 20 | D153: 0 | E153: 0 | F153: 0 | G153: 0 | H153: 0
A154: Slutafvanding, slam - lavteknologisk (slambede), SRO | B154: PE | C154: 10 | D154: 0 | E154: 0 | F154: 0 | G154: 0 | H154: 0
A155: Slutafvanding, slam - højteknologisk (centrifuger), Konstruktioner | B155: PE | C155: 60 | D155: 14000 | E155: 14000 | F155: 14000 | G155: 0 | H155: 0
A156: Slutafvanding, slam - højteknologisk (centrifuger), Mek/El | B156: PE | C156: 20 | D156: 14000 | E156: 14000 | F156: 14000 | G156: 0 | H156: 0
A157: Slutafvanding, slam - højteknologisk (centrifuger), SRO | B157: PE | C157: 10 | D157: 14000 | E157: 14000 | F157: 14000 | G157: 0 | H157: 0
A158: Renseanlæg >= 5.000 PE, Slamdisponering
A159: Slutdisponering, slam - lavteknologisk (slammineralisering), Konstruktioner | B159: PE | C159: 60 | D159: 0 | E159: 0 | F159: 0 | G159: 0 | H159: 0
A160: Slutdisponering, slam - lavteknologisk (slammineralisering), Mek/EL | B160: PE | C160: 20 | D160: 0 | E160: 0 | F160: 0 | G160: 0 | H160: 0
A161: Slutdisponering, slam - lavteknologisk (slammineralisering), SRO | B161: PE | C161: 10 | D161: 0 | E161: 0 | F161: 0 | G161: 0 | H161: 0
A162: Slutdisponering, slam - højteknologisk (slamtørring), Konstruktioner | B162: PE | C162: 60 | D162: 0 | E162: 0 | F162: 0 | G162: 0 | H162: 0
A163: Slutdisponering, slam - højteknologisk (slamtørring), Mek/EL | B163: PE | C163: 20 | D163: 0 | E163: 0 | F163: 0 | G163: 0 | H163: 0
A164: Slutdisponering, slam - højteknologisk (slamtørring), SRO | B164: PE | C164: 10 | D164: 0 | E164: 0 | F164: 0 | G164: 0 | H164: 0
A165: Slutdisponering, slam - højteknologisk (slamtørring og -forbrænding), Konstruktioner | B165: PE | C165: 60 | D165: 0 | E165: 0 | F165: 0 | G165: 0 | H165: 0
A166: Slutdisponering, slam - højteknologisk (slamtørring og -forbrænding), Mek/EL | B166: PE | C166: 20 | D166: 0 | E166: 0 | F166: 0 | G166: 0 | H166: 0
A167: Slutdisponering, slam - højteknologisk (slamtørring og -forbrænding), SRO | B167: PE | C167: 10 | D167: 0 | E167: 0 | F167: 0 | G167: 0 | H167: 0
A168: Renseanlæg 4
A169: Mindre renseanlæg
A170: Mindre renseanlæg < 5.000 PE | B170: PE | C170: 40 | D170: 100 | E170: 100 | F170: 100 | G170: 0 | H170: 0
A171: Renseanlæg >= 5.000 PE, Vandbehandling
A172: Indløb med riste, Konstruktioner | B172: PE | C172: 60 | D172: 0 | G172: 0
A173: Indløb med riste, Mek/EL | B173: PE | C173: 20 | D173: 0 | G173: 0
A174: Indløb med riste, SRO | B174: PE | C174: 10 | D174: 0 | G174: 0
A175: Sand- og fedtfang, Kontruktioner | B175: PE | C175: 60 | D175: 0 | G175: 0
A176: Sand- og fedtfang, Mek/EL | B176: PE | C176: 20 | D176: 0 | G176: 0
A177: Sand- og fedtfang, SRO | B177: PE | C177: 10 | D177: 0 | G177: 0
A178: Forklaring, Konstruktioner | B178: PE | C178: 60 | D178: 0 | G178: 0
A179: Forklaring, Mek/EL | B179: PE | C179: 20 | D179: 0 | G179: 0
A180: Forklaring, SRO | B180: PE | C180: 10 | D180: 0 | G180: 0
A181: Beluftningstanke, Konstruktioner | B181: PE | C181: 60 | D181: 0 | G181: 0
A182: Beluftningstanke, Mek/EL | B182: PE | C182: 20 | D182: 0 | G182: 0
A183: Beluftningstanke, SRO | B183: PE | C183: 10 | D183: 0 | G183: 0
A184: Efterklaringstanke, Konstruktioner | B184: PE | C184: 60 | D184: 0 | G184: 0
A185: Efterklaringstanke, Mek/El | B185: PE | C185: 20 | D185: 0 | G185: 0
A186: Efterklaringstanke, SRO | B186: PE | C186: 10 | D186: 0 | G186: 0
A187: Efterbehandlingsanlæg (sandfilter), Konstruktioner | B187: PE | C187: 60 | D187: 0 | G187: 0
A188: Efterbehandlingsanlæg (sandfilter), Mek/EL | B188: PE | C188: 20 | D188: 0 | G188: 0
A189: Efterbehandlingsanlæg (sandfilter), SRO | B189: PE | C189: 10 | D189: 0 | G189: 0
A190: Renseanlæg >= 5.000 PE, Slambehandling
A191: Forafvanding, slam, Konstruktion | B191: PE | C191: 60 | D191: 0 | G191: 0
A192: Forafvanding, slam, Mek/EL | B192: PE | C192: 20 | D192: 0 | G192: 0
A193: Forafvanding, slam, SRO | B193: PE | C193: 10 | D193: 0 | G193: 0
A194: Rådnetanke, slam, Konstruktioner | B194: PE | C194: 60 | D194: 0 | G194: 0
A195: Rådnetanke, slam, Mek/EL | B195: PE | C195: 20 | D195: 0 | G195: =IF(D195="",IF(E195>0,"Ny data",IF(E195="","",0)),IF(D195=0,IF(E195=0,0,"Ny data"),(E195-D195)/D195)) -> 0 | H195: =IF(E195="",IF(F195>0,"Ny data",IF(F195="","",0)),IF(E195=0,IF(F195=0,0,"Ny data"),(F195-E195)/E195)) -> 
A196: Rådnetanke, slam, SRO | B196: PE | C196: 10 | D196: 0 | G196: 0
A197: Gasdisponering, Konstruktioner | B197: PE | C197: 60 | D197: 0 | G197: 0
A198: Gasdisponering, Mek/EL | B198: PE | C198: 20 | D198: 0 | G198: 0
A199: Gasdisponering, SRO | B199: PE | C199: 10 | D199: 0 | G199: 0
A200: Gasdisponering - elproduktionsanlæg, Konstruktioner | B200: PE | C200: 60 | D200: 0 | G200: 0
A201: Gasdisponering - elproduktionsanlæg, Mek/EL | B201: PE | C201: 20 | D201: 0 | G201: 0
... 461 more rows

Sheet Distributionsanlæg
A1: Distributionsanlæg | B1: Enhed | C1: Standard-levetid | D1: Samlet mængde per 31/12-2022 | E1: Samlet mængde per 31/12-2023 | F1: Samlet mængde per 31/12-2024 | G1: Afvigelse 2022-2023 | H1: Afvigelse 2023-2024 | I1: Bemærkninger
A3: Ledningsnet - Land | G3: =IF(D3="",IF(E3>0,"Ny data",IF(E3="","",0)),IF(D3=0,IF(E3=0,0,"Ny data"),(E3-D3)/D3)) ->  | H3: =IF(E3="",IF(F3>0,"Ny data",IF(F3="","",0)),IF(E3=0,IF(F3=0,0,"Ny data"),(F3-E3)/E3)) -> 
A4: Ledningsnet ≤ Ø 200 mm | B4: meter | C4: 75 | D4: 400243.77 | E4: 400244 | F4: 401735 | G4: 5.746497946e-07 | H4: 0.003725227611
A5: Ø 200 mm < Ledningsnet ≤ Ø 500 mm | B5: meter | C5: 75 | D5: 84773.72 | E5: 84774 | F5: 85295 | G5: 3.302910384e-06 | H5: 0.006145752235
A6: Ø 500 mm < Ledningsnet ≤ Ø 800 mm | B6: meter | C6: 75 | D6: 7637.63 | E6: 7638 | F6: 7658 | G6: 4.844434726e-05 | H6: 0.002618486515
A7: Ø 800 mm < Ledningsnet ≤ Ø 1000 mm | B7: meter | C7: 75 | D7: 1065.31 | E7: 1066 | F7: 1066 | G7: 0.0006476987919 | H7: 0
A8: Ø 1000 mm < Ledningsnet ≤ Ø 1200 mm | B8: meter | C8: 75 | D8: 427.98 | E8: 428 | F8: 428 | G8: 4.673115566e-05 | H8: 0
A9: Ø 1200 mm < Ledningsnet ≤ Ø 1600 mm | B9: meter | C9: 75 | D9: 229.59 | E9: 230 | F9: 230 | G9: 0.001785792064 | H9: 0
A10: Ledningsnet > Ø 1600 mm (rørbassiner og transportledninger) | B10: meter | C10: 75 | D10: 0 | E10: 0 | F10: 0 | G10: 0 | H10: 0
A11: Strømpeforing ≤ Ø 200 mm | B11: meter | C11: 50 | D11: 26345.91 | E11: 25903 | F11: 25903 | G11: -0.01681133808 | H11: 0
A12: Strømpeforing Ø 200 mm < Ledningsnet ≤ Ø 500 mm | B12: meter | C12: 50 | D12: 3904.76 | E12: 4864 | F12: 4864 | G12: 0.2456591442 | H12: 0 | I12: renovering
A13: Strømpeforing Ø 500 mm < Ledningsnet ≤ Ø 800 mm | B13: meter | C13: 50 | D13: 52.43 | E13: 52 | F13: 52 | G13: -0.008201411406 | H13: 0
A14: Strømpeforing Ø 800 mm < Ledningsnet ≤ Ø 1000 mm | B14: meter | C14: 50 | D14: 237.55 | E14: 238 | F14: 238 | G14: 0.001894338034 | H14: 0
A15: Strømpeforing Ø 1000 mm < Ledningsnet ≤ Ø 1200 mm | B15: meter | C15: 50 | D15: 0 | E15: 0 | F15: 0 | G15: 0 | H15: 0
A16: Strømpeforing Ø 1200 mm < Ledningsnet ≤ Ø 1600 mm | B16: meter | C16: 50 | D16: 0 | E16: 0 | F16: 0 | G16: 0 | H16: 0
A17: Ledningsnet - By
A18: Ledningsnet ≤ Ø 200 mm | B18: meter | C18: 75 | D18: 587760.61 | E18: =591804-2958 -> 588846 | F18: 591804 | G18: 0.001846653181 | H18: 0.005023384722
A19: Ø 200 mm < Ledningsnet ≤ Ø 500 mm | B19: meter | C19: 75 | D19: 220519.24 | E19: =222110-1459 -> 220651 | F19: 222110 | G19: 0.0005974988849 | H19: 0.006612251927
A20: Ø 500 mm < Ledningsnet ≤ Ø 800 mm | B20: meter | C20: 75 | D20: 57655.89 | E20: 57083 | F20: 57083 | G20: -0.009936365565 | H20: 0
A21: Ø 800 mm < Ledningsnet ≤ Ø 1000 mm | B21: meter | C21: 75 | D21: 16354.05 | E21: 16329 | F21: 16329 | G21: -0.001531730672 | H21: 0
A22: Ø 1000 mm < Ledningsnet ≤ Ø 1200 mm | B22: meter | C22: 75 | D22: 2177.16 | E22: 2169 | F22: 2169 | G22: -0.003748001984 | H22: 0
A23: Ø 1200 mm < Ledningsnet ≤ Ø 1600 mm | B23: meter | C23: 75 | D23: 7286.06 | E23: 7336 | F23: 7336 | G23: 0.006854184566 | H23: 0
A24: Ledningsnet > Ø 1600 mm (rørbassiner og transportledninger) | B24: meter | C24: 75 | D24: 234.41 | E24: 242 | F24: 242 | G24: 0.03237916471 | H24: 0
A25: Strømpeforing ≤ Ø 200 mm | B25: meter | C25: 50 | D25: 4452.74 | E25: =5123-252 -> 4871 | F25: 5123 | G25: 0.09393317373 | H25: 0.05173475672
A26: Strømpeforing Ø 200 mm < Ledningsnet ≤ Ø 500 mm | B26: meter | C26: 50 | D26: 5933.8 | E26: =6624-388 -> 6236 | F26: 6624 | G26: 0.05092857865 | H26: 0.06221937139
A27: Strømpeforing Ø 500 mm < Ledningsnet ≤ Ø 800 mm | B27: meter | C27: 50 | D27: 4522.04 | E27: =5022-258 -> 4764 | F27: 5022 | G27: 0.05350682435 | H27: 0.05415617128
A28: Strømpeforing Ø 800 mm < Ledningsnet ≤ Ø 1000 mm | B28: meter | C28: 50 | D28: 1497.12 | E28: 1589 | F28: 1589 | G28: 0.06137116597 | H28: 0
A29: Strømpeforing Ø 1000 mm < Ledningsnet ≤ Ø 1200 mm | B29: meter | C29: 50 | D29: 83.26 | E29: 83 | F29: 83 | G29: -0.003122748018 | H29: 0
A30: Strømpeforing Ø 1200 mm < Ledningsnet ≤ Ø 1600 mm | B30: meter | C30: 50 | D30: 232.2 | E30: =304-72 -> 232 | F30: 304 | G30: -0.0008613264427 | H30: 0.3103448276 | I30: renovering
A31: Ledningsnet - City
A32: Ledningsnet ≤ Ø 200 mm | B32: meter | C32: 75 | D32: 58570.97 | E32: =+F32-873 -> 57996 | F32: 58869 | G32: -0.009816637833 | H32: 0.01505276226
A33: Ø 200 mm < Ledningsnet ≤ Ø 500 mm | B33: meter | C33: 75 | D33: 34248.85 | E33: =+F33-184 -> 34185 | F33: 34369 | G33: -0.001864296173 | H33: 0.005382477695
A34: Ø 500 mm < Ledningsnet ≤ Ø 800 mm | B34: meter | C34: 75 | D34: 10565.21 | E34: 10847 | F34: 10847 | G34: 0.02667150014 | H34: 0
A35: Ø 800 mm < Ledningsnet ≤ Ø 1000 mm | B35: meter | C35: 75 | D35: 3543.86 | E35: 3544 | F35: 3544 | G35: 3.950494658e-05 | H35: 0
A36: Ø 1000 mm < Ledningsnet ≤ Ø 1200 mm | B36: meter | C36: 75 | D36: 442.1 | E36: 442 | F36: 442 | G36: -0.000226193169 | H36: 0
A37: Ø 1200 mm < Ledningsnet ≤ Ø 1600 mm | B37: meter | C37: 75 | D37: 2803.07 | E37: 2974 | F37: 2974 | G37: 0.06097956883 | H37: 0
A38: Ledningsnet > Ø 1600 mm (rørbassiner og transportledninger) | B38: meter | C38: 75 | D38: 243.77 | E38: 244 | F38: 244 | G38: 0.0009435123272 | H38: 0
A39: Strømpeforing ≤ Ø 200 mm | B39: meter | C39: 50 | D39: 1027.14 | E39: =1233-154 -> 1079 | F39: 1233 | G39: 0.05048970929 | H39: 0.1427247451
A40: Strømpeforing Ø 200 mm < Ledningsnet ≤ Ø 500 mm | B40: meter | C40: 50 | D40: 3519.96 | E40: 3773 | F40: 3793 | G40: 0.07188718054 | H40: 0.005300821627
A41: Strømpeforing Ø 500 mm < Ledningsnet ≤ Ø 800 mm | B41: meter | C41: 50 | D41: 1353.54 | E41: =1507-157 -> 1350 | F41: 1507 | G41: -0.002615364156 | H41: 0.1162962963
A42: Strømpeforing Ø 800 mm < Ledningsnet ≤ Ø 1000 mm | B42: meter | C42: 50 | D42: 869.62 | E42: 870 | F42: 870 | G42: 0.0004369724707 | H42: 0
A43: Strømpeforing Ø 1000 mm < Ledningsnet ≤ Ø 1200 mm | B43: meter | C43: 50 | D43: 0 | E43: 0 | F43: 0 | G43: 0 | H43: 0
A44: Strømpeforing Ø 1200 mm < Ledningsnet ≤ Ø 1600 mm | B44: meter | C44: 50 | D44: 573.24 | E44: =846-273 -> 573 | F44: 846 | G44: -0.0004186728072 | H44: 0.4764397906 | I44: renovering
A45: Ledningsnet - Indre city
A46: Ledningsnet ≤ Ø 200 mm | B46: meter | C46: 75 | D46: 0 | E46: 0 | F46: 0 | G46: 0 | H46: 0
A47: Ø 200 mm < Ledningsnet ≤ Ø 500 mm | B47: meter | C47: 75 | D47: 0 | E47: 0 | F47: 0 | G47: 0 | H47: 0
A48: Ø 500 mm < Ledningsnet ≤ Ø 800 mm | B48: meter | C48: 75 | D48: 0 | E48: 0 | F48: 0 | G48: 0 | H48: 0
A49: Ø 800 mm < Ledningsnet ≤ Ø 1000 mm | B49: meter | C49: 75 | D49: 0 | E49: 0 | F49: 0 | G49: 0 | H49: 0
A50: Ø 1000 mm < Ledningsnet ≤ Ø 1200 mm | B50: meter | C50: 75 | D50: 0 | E50: 0 | F50: 0 | G50: 0 | H50: 0
A51: Ø 1200 mm < Ledningsnet ≤ Ø 1600 mm | B51: meter | C51: 75 | D51: 0 | E51: 0 | F51: 0 | G51: 0 | H51: 0
A52: Ledningsnet > Ø 1600 mm (rørbassiner og transportledninger) | B52: meter | C52: 75 | D52: 0 | E52: 0 | F52: 0 | G52: 0 | H52: 0
A53: Strømpeforing ≤ Ø 200 mm | B53: meter | C53: 50 | D53: 0 | E53: 0 | F53: 0 | G53: 0 | H53: 0
A54: Strømpeforing Ø 200 mm < Ledningsnet ≤ Ø 500 mm | B54: meter | C54: 50 | D54: 0 | E54: 0 | F54: 0 | G54: 0 | H54: 0
A55: Strømpeforing Ø 500 mm < Ledningsnet ≤ Ø 800 mm | B55: meter | C55: 50 | D55: 0 | E55: 0 | F55: 0 | G55: 0 | H55: 0
A56: Strømpeforing Ø 800 mm < Ledningsnet ≤ Ø 1000 mm | B56: meter | C56: 50 | D56: 0 | E56: 0 | F56: 0 | G56: 0 | H56: 0
A57: Strømpeforing Ø 1000 mm < Ledningsnet ≤ Ø 1200 mm | B57: meter | C57: 50 | D57: 0 | E57: 0 | F57: 0 | G57: 0 | H57: 0
A58: Strømpeforing Ø 1200 mm < Ledningsnet ≤ Ø 1600 mm | B58: meter | C58: 50 | D58: 0 | E58: 0 | F58: 0 | G58: 0 | H58: 0
A59: Brønde og stik, ledningsnet - Land
A60: Brønde | B60: stk. | C60: 75 | D60: 4359 | E60: =4414-60 -> 4354 | F60: 4414 | G60: -0.001147052076 | H60: 0.01378043179
A61: Stik | B61: stk. | C61: 75 | D61: 7050 | E61: =7462-34 -> 7428 | F61: =6756+706 -> 7462 | G61: 0.05361702128 | H61: 0.004577275175
A62: Brønde og stik, ledningsnet - By
A63: Brønde | B63: stk. | C63: 75 | D63: 14775 | E63: =14871-123 -> 14748 | F63: 14871 | G63: -0.001827411168 | H63: 0.008340113914
A64: Stik | B64: stk. | C64: 75 | D64: 35581 | E64: =36003-163-12 -> 35828 | F64: =35839+164 -> 36003 | G64: 0.006941907198 | H64: 0.004884447918
A65: Brønde og stik, ledningsnet - City
A66: Brønde | B66: stk. | C66: 75 | D66: 1535 | E66: =1537-7 -> 1530 | F66: 1537 | G66: -0.00325732899 | H66: 0.004575163399
A67: Stik | B67: stk. | C67: 75 | D67: 4590 | E67: =4682-39-22 -> 4621 | F67: =4581+101 -> 4682 | G67: =IF(D67="",IF(E67>0,"Ny data",IF(E67="","",0)),IF(D67=0,IF(E67=0,0,"Ny data"),(E67-D67)/D67)) -> 0.006753812636 | H67: =IF(E67="",IF(F67>0,"Ny data",IF(F67="","",0)),IF(E67=0,IF(F67=0,0,"Ny data"),(F67-E67)/E67)) -> 0.01320060593
A68: Brønde og stik, ledningsnet - Indre city
A69: Brønde | B69: stk. | C69: 75 | D69: 0 | G69: 0
A70: Stik | B70: stk. | C70: 75 | D70: 0 | G70: 0
A71: Små pumpestationer (<100 l/s) inkl. SRO-anlæg - Land
A72: Tryksatte minipumpestationer (husstandssystemer) | B72: stk. | C72: 30 | D72: 279 | E72: 279 | F72: 287 | G72: 0 | H72: 0.02867383513 | I72: Tilgang åbent land
A73: Pumpestationer i brønde (< 6,25 m2), Konstruktioner | B73: stk. | C73: 50 | D73: 468 | E73: 498 | F73: 512 | G73: 0.0641025641 | H73: 0.0281124498
A74: Pumpestationer i brønde (< 6,25 m2), Mek/EL | B74: stk. | C74: 20 | D74: =468+30 -> 498 | E74: 498 | F74: 512 | G74: 0 | H74: 0.0281124498
A75: Pumpestationer i brønde (< 6,25 m2), SRO | B75: stk. | C75: 10 | D75: =410+30 -> 440 | E75: 498 | F75: 512 | G75: 0.1318181818 | H75: 0.0281124498
A76: Pumpestationer m. overbygning (< 20 m2), Konstruktioner | B76: stk. | C76: 50 | D76: 13 | E76: 19 | F76: 19 | G76: 0.4615384615 | H76: 0 | I76: opdatering database
A77: Pumpestationer m. overbygning (< 20 m2), Mek/EL | B77: stk. | C77: 20 | D77: =13+6 -> 19 | E77: 19 | F77: 19 | G77: 0 | H77: 0
A78: Pumpestationer m. overbygning (< 20 m2), SRO | B78: stk. | C78: 10 | D78: =13+6 -> 19 | E78: 19 | F78: 19 | G78: 0 | H78: 0
A79: Pumpestationer i underjordiske bygværker (<50 m2), Konstruktioner | B79: stk. | C79: 50 | D79: 0 | G79: 0
A80: Pumpestationer i underjordiske bygværker (<50 m2), Mek/El | B80: stk. | C80: 20 | D80: 0 | G80: 0
A81: Pumpestationer i underjordiske bygværker (<50 m2), SRO | B81: stk. | C81: 10 | D81: 0 | G81: 0
A82: Små pumpestationer (<100 l/s) inkl. SRO-anlæg - By
A83: Tryksatte minipumpestationer (husstandssystemer) | B83: stk. | C83: 30 | D83: 1 | E83: 2 | F83: 2 | G83: 1 | H83: 0 | I83: fintælleing
A84: Pumpestationer i brønde (< 6,25 m2), Konstruktioner | B84: stk. | C84: 50 | D84: 77 | E84: 101 | F84: 101 | G84: 0.3116883117 | H84: 0 | I84: Lokalplaner og byggemodninger
A85: Pumpestationer i brønde (< 6,25 m2), Mek/EL | B85: stk. | C85: 20 | D85: =16+77 -> 93 | E85: 101 | F85: 101 | G85: 0.08602150538 | H85: 0
A86: Pumpestationer i brønde (< 6,25 m2), SRO | B86: stk. | C86: 10 | D86: =16+58 -> 74 | E86: 101 | F86: 101 | G86: 0.3648648649 | H86: 0 | I86: SRO på alle
A87: Pumpestationer m. overbygning (< 20 m2), Konstruktioner | B87: stk. | C87: 50 | D87: 6 | E87: 11 | F87: 11 | G87: 0.8333333333 | H87: 0 | I87: opdatering database
A88: Pumpestationer m. overbygning (< 20 m2), Mek/EL | B88: stk. | C88: 20 | D88: =5+6 -> 11 | E88: 11 | F88: 11 | G88: 0 | H88: 0
A89: Pumpestationer m. overbygning (< 20 m2), SRO | B89: stk. | C89: 10 | D89: =5+6 -> 11 | E89: 11 | F89: 11 | G89: 0 | H89: 0
A90: Pumpestationer i underjordiske bygværker (<50 m2), Konstruktioner | B90: stk. | C90: 50 | D90: 9 | E90: 11 | F90: 11 | G90: 0.2222222222 | H90: 0 | I90: opdatering database
A91: Pumpestationer i underjordiske bygværker (<50 m2), Mek/El | B91: stk. | C91: 20 | D91: =2+9 -> 11 | E91: 11 | F91: 11 | G91: 0 | H91: 0
A92: Pumpestationer i underjordiske bygværker (<50 m2), SRO | B92: stk. | C92: 10 | D92: =2+9 -> 11 | E92: 11 | F92: 11 | G92: 0 | H92: 0
A93: Små pumpestationer (<100 l/s) inkl. SRO-anlæg - City
A94: Tryksatte minipumpestationer (husstandssystemer) | B94: stk. | C94: 30 | D94: 0 | G94: 0
A95: Pumpestationer i brønde (< 6,25 m2), Konstruktioner | B95: stk. | C95: 50 | D95: 4 | E95: 7 | F95: 7 | G95: 0.75 | H95: 0 | I95: opdatering database
A96: Pumpestationer i brønde (< 6,25 m2), Mek/EL | B96: stk. | C96: 20 | D96: =2+4 -> 6 | E96: 7 | F96: 7 | G96: 0.1666666667 | H96: 0 | I96: opdatering database
A97: Pumpestationer i brønde (< 6,25 m2), SRO | B97: stk. | C97: 10 | D97: =2+3 -> 5 | E97: 7 | F97: 7 | G97: 0.4 | H97: 0 | I97: opdatering database
A98: Pumpestationer m. overbygning (< 20 m2), Konstruktioner | B98: stk. | C98: 50 | D98: 0 | G98: 0
A99: Pumpestationer m. overbygning (< 20 m2), Mek/EL | B99: stk. | C99: 20 | D99: 0 | G99: 0
A100: Pumpestationer m. overbygning (< 20 m2), SRO | B100: stk. | C100: 10 | D100: 0 | G100: 0
A101: Pumpestationer i underjordiske bygværker (<50 m2), Konstruktioner | B101: stk. | C101: 50 | D101: 0 | G101: 0
A102: Pumpestationer i underjordiske bygværker (<50 m2), Mek/El | B102: stk. | C102: 20 | D102: 0 | G102: 0
A103: Pumpestationer i underjordiske bygværker (<50 m2), SRO | B103: stk. | C103: 10 | D103: 0 | G103: 0
A104: Små pumpestationer (<100 l/s) inkl. SRO-anlæg - Indre city
A105: Tryksatte minipumpestationer (husstandssystemer) | B105: stk. | C105: 30 | D105: 0 | G105: 0
A106: Pumpestationer i brønde (< 6,25 m2), Konstruktioner | B106: stk. | C106: 50 | D106: 0 | G106: 0
A107: Pumpestationer i brønde (< 6,25 m2), Mek/EL | B107: stk. | C107: 20 | D107: 0 | G107: 0
A108: Pumpestationer i brønde (< 6,25 m2), SRO | B108: stk. | C108: 10 | D108: 0 | G108: 0
A109: Pumpestationer m. overbygning (< 20 m2), Konstruktioner | B109: stk. | C109: 50 | D109: 0 | G109: 0
A110: Pumpestationer m. overbygning (< 20 m2), Mek/EL | B110: stk. | C110: 20 | D110: 0 | G110: 0
A111: Pumpestationer m. overbygning (< 20 m2), SRO | B111: stk. | C111: 10 | D111: 0 | G111: 0
A112: Pumpestationer i underjordiske bygværker (<50 m2), Konstruktioner | B112: stk. | C112: 50 | D112: 0 | G112: 0
A113: Pumpestationer i underjordiske bygværker (<50 m2), Mek/El | B113: stk. | C113: 20 | D113: 0 | G113: 0
A114: Pumpestationer i underjordiske bygværker (<50 m2), SRO | B114: stk. | C114: 10 | D114: 0 | G114: 0
A115: Store pumpestationer: inkl. SRO-anlæg - Land
A116: Kælder | B116: m2 | C116: 75 | D116: 32 | E116: 32 | F116: 32 | G116: 0 | H116: 0
A117: Pumpeinstallation Miljøklasse A (100-300 l/s) - Mek/EL | B117: stk. | C117: 20 | D117: =4+3 -> 7 | E117: =7+31 -> 38 | F117: 38 | G117: 4.428571429 | H117: 0 | I117: Miljøklasse ændret
A118: Pumpeinstallation Miljøklasse A (100-300 l/s) - SRO | B118: stk. | C118: 10 | D118: =4+3 -> 7 | E118: 38 | F118: 38 | G118: 4.428571429 | H118: 0 | I118: Miljøklasse ændret
A119: Pumpeinstallation Miljøklasse A (300-600 l/s) - Mek/EL | B119: stk. | C119: 20 | D119: =1+2 -> 3 | E119: 3 | F119: 3 | G119: 0 | H119: 0
A120: Pumpeinstallation Miljøklasse A (300-600 l/s) - SRO | B120: stk. | C120: 10 | D120: =1+2 -> 3 | E120: 3 | F120: 3 | G120: 0 | H120: 0
A121: Pumpeinstallation Miljøklasse A (600-1.000 l/s) - Mek/EL | B121: stk. | C121: 20 | D121: 0 | G121: 0
A122: Pumpeinstallation Miljøklasse A (600-1.000 l/s) - SRO | B122: stk. | C122: 10 | D122: 0 | G122: 0
A123: Pumpeinstallation Miljøklasse A (1.000-1.500 l/s) - Mek/EL | B123: stk. | C123: 20 | D123: 0 | G123: 0
A124: Pumpeinstallation Miljøklasse A (1.000-1.500 l/s) - SRO | B124: stk. | C124: 10 | D124: 0 | G124: 0
A125: Pumpeinstallation Miljøklasse B (100-300 l/s) - Mek/EL | B125: stk. | C125: 20 | D125: =15+16 -> 31 | E125: 0 | F125: 0 | G125: -1 | H125: 0 | I125: Miljøklasse ændret
A126: Pumpeinstallation Miljøklasse B (100-300 l/s) - SRO | B126: stk. | C126: 10 | D126: =15+16 -> 31 | E126: 0 | F126: 0 | G126: -1 | H126: 0 | I126: Miljøklasse ændret
A127: Pumpeinstallation Miljøklasse B (300-600 l/s) - Mek/EL | B127: stk. | C127: 20 | D127: 0 | G127: 0
A128: Pumpeinstallation Miljøklasse B (300-600 l/s) - SRO | B128: stk. | C128: 10 | D128: 0 | G128: 0
A129: Pumpeinstallation Miljøklasse B (600-1.000 l/s) - Mek/EL | B129: stk. | C129: 20 | D129: 0 | G129: 0
A130: Pumpeinstallation Miljøklasse B (600-1.000 l/s) - SRO | B130: stk. | C130: 10 | D130: 0 | G130: 0
A131: Pumpeinstallation Miljøklasse B (1.000-1.500 l/s) - Mek/EL | B131: stk. | C131: 20 | D131: =1+4 -> 5 | E131: 5 | F131: 5 | G131: =IF(D131="",IF(E131>0,"Ny data",IF(E131="","",0)),IF(D131=0,IF(E131=0,0,"Ny data"),(E131-D131)/D131)) -> 0 | H131: =IF(E131="",IF(F131>0,"Ny data",IF(F131="","",0)),IF(E131=0,IF(F131=0,0,"Ny data"),(F131-E131)/E131)) -> 0
A132: Pumpeinstallation Miljøklasse B (1.000-1.500 l/s) - SRO | B132: stk. | C132: 10 | D132: =1+4 -> 5 | E132: 5 | F132: 5 | G132: 0 | H132: 0
A133: Overbygning | B133: m2 | C133: 75 | D133: 274 | E133: 306 | F133: 306 | G133: 0.1167883212 | H133: 0
A134: Store pumpestationer: inkl. SRO-anlæg - By
A135: Kælder | B135: m2 | C135: 75 | D135: 85 | E135: 86 | F135: 86 | G135: 0.01176470588 | H135: 0
A136: Pumpeinstallation Miljøklasse A (100-300 l/s) - Mek/EL | B136: stk. | C136: 20 | D136: 5 | E136: 16 | F136: 16 | G136: 2.2 | H136: 0 | I136: Miljøklasse ændret
A137: Pumpeinstallation Miljøklasse A (100-300 l/s) - SRO | B137: stk. | C137: 10 | D137: 5 | E137: 16 | F137: 16 | G137: 2.2 | H137: 0 | I137: Miljøklasse ændret
A138: Pumpeinstallation Miljøklasse A (300-600 l/s) - Mek/EL | B138: stk. | C138: 20 | D138: 1 | E138: 7 | F138: 7 | G138: 6 | H138: 0 | I138: Miljøklasse ændret
A139: Pumpeinstallation Miljøklasse A (300-600 l/s) - SRO | B139: stk. | C139: 10 | D139: 1 | E139: 7 | F139: 7 | G139: 6 | H139: 0 | I139: Miljøklasse ændret
A140: Pumpeinstallation Miljøklasse A (600-1.000 l/s) - Mek/EL | B140: stk. | C140: 20 | D140: 0 | G140: 0
A141: Pumpeinstallation Miljøklasse A (600-1.000 l/s) - SRO | B141: stk. | C141: 10 | D141: 0 | G141: 0
A142: Pumpeinstallation Miljøklasse A (1.000-1.500 l/s) - Mek/EL | B142: stk. | C142: 20 | D142: 0 | G142: 0
A143: Pumpeinstallation Miljøklasse A (1.000-1.500 l/s) - SRO | B143: stk. | C143: 10 | D143: 0 | G143: 0
A144: Pumpeinstallation Miljøklasse B (100-300 l/s) - Mek/EL | B144: stk. | C144: 20 | D144: =5+6 -> 11 | E144: 0 | F144: 0 | G144: -1 | H144: 0 | I144: Miljøklasse ændret
A145: Pumpeinstallation Miljøklasse B (100-300 l/s) - SRO | B145: stk. | C145: 10 | D145: =5+6 -> 11 | E145: 0 | F145: 0 | G145: -1 | H145: 0 | I145: Miljøklasse ændret
A146: Pumpeinstallation Miljøklasse B (300-600 l/s) - Mek/EL | B146: stk. | C146: 20 | D146: =3+3 -> 6 | E146: 0 | F146: 0 | G146: -1 | H146: 0 | I146: Miljøklasse ændret
A147: Pumpeinstallation Miljøklasse B (300-600 l/s) - SRO | B147: stk. | C147: 10 | D147: =3+3 -> 6 | E147: 0 | F147: 0 | G147: -1 | H147: 0 | I147: Miljøklasse ændret
A148: Pumpeinstallation Miljøklasse B (600-1.000 l/s) - Mek/EL | B148: stk. | C148: 20 | D148: 0 | G148: 0
A149: Pumpeinstallation Miljøklasse B (600-1.000 l/s) - SRO | B149: stk. | C149: 10 | D149: 0 | G149: 0
A150: Pumpeinstallation Miljøklasse B (1.000-1.500 l/s) - Mek/EL | B150: stk. | C150: 20 | D150: =2+1 -> 3 | E150: 3 | F150: 3 | G150: 0 | H150: 0
A151: Pumpeinstallation Miljøklasse B (1.000-1.500 l/s) - SRO | B151: stk. | C151: 10 | D151: =2+1 -> 3 | E151: 3 | F151: 3 | G151: 0 | H151: 0
A152: Overbygning | B152: m2 | C152: 75 | D152: 266 | E152: 266 | F152: 266 | G152: 0 | H152: 0
A153: Store pumpestationer: inkl. SRO-anlæg - City
A154: Kælder | B154: m2 | C154: 75 | D154: 0 | E154: 12 | F154: 12 | G154: Ny data | H154: 0 | I154: Er ved en fejl ikke kommet med i sidste rapportering
A155: Pumpeinstallation Miljøklasse A (100-300 l/s) - Mek/EL | B155: stk. | C155: 20 | D155: =1+1 -> 2 | E155: 2 | F155: 2 | G155: 0 | H155: 0 | I155: Rådmandsengen
A156: Pumpeinstallation Miljøklasse A (100-300 l/s) - SRO | B156: stk. | C156: 10 | D156: =1+1 -> 2 | E156: 2 | F156: 2 | G156: 0 | H156: 0
A157: Pumpeinstallation Miljøklasse A (300-600 l/s) - Mek/EL | B157: stk. | C157: 20 | D157: 0 | E157: 0 | F157: 0 | G157: 0 | H157: 0
A158: Pumpeinstallation Miljøklasse A (300-600 l/s) - SRO | B158: stk. | C158: 10 | D158: 0 | E158: 0 | F158: 0 | G158: 0 | H158: 0
A159: Pumpeinstallation Miljøklasse A (600-1.000 l/s) - Mek/EL | B159: stk. | C159: 20 | D159: 0 | E159: 0 | F159: 0 | G159: 0 | H159: 0
A160: Pumpeinstallation Miljøklasse A (600-1.000 l/s) - SRO | B160: stk. | C160: 10 | D160: 0 | E160: 0 | F160: 0 | G160: 0 | H160: 0
A161: Pumpeinstallation Miljøklasse A (1.000-1.500 l/s) - Mek/EL | B161: stk. | C161: 20 | D161: 0 | E161: 0 | F161: 0 | G161: 0 | H161: 0
A162: Pumpeinstallation Miljøklasse A (1.000-1.500 l/s) - SRO | B162: stk. | C162: 10 | D162: 0 | E162: 0 | F162: 0 | G162: 0 | H162: 0
A163: Pumpeinstallation Miljøklasse B (100-300 l/s) - Mek/EL | B163: stk. | C163: 20 | D163: 0 | E163: 0 | F163: 0 | G163: 0 | H163: 0
A164: Pumpeinstallation Miljøklasse B (100-300 l/s) - SRO | B164: stk. | C164: 10 | D164: 0 | E164: 0 | F164: 0 | G164: 0 | H164: 0
A165: Pumpeinstallation Miljøklasse B (300-600 l/s) - Mek/EL | B165: stk. | C165: 20 | D165: 0 | E165: 0 | F165: 0 | G165: 0 | H165: 0
A166: Pumpeinstallation Miljøklasse B (300-600 l/s) - SRO | B166: stk. | C166: 10 | D166: 0 | E166: 0 | F166: 0 | G166: 0 | H166: 0
A167: Pumpeinstallation Miljøklasse B (600-1.000 l/s) - Mek/EL | B167: stk. | C167: 20 | D167: 0 | E167: 0 | F167: 0 | G167: 0 | H167: 0
A168: Pumpeinstallation Miljøklasse B (600-1.000 l/s) - SRO | B168: stk. | C168: 10 | D168: 0 | E168: 0 | F168: 0 | G168: 0 | H168: 0
A169: Pumpeinstallation Miljøklasse B (1.000-1.500 l/s) - Mek/EL | B169: stk. | C169: 20 | D169: 0 | E169: 0 | F169: 0 | G169: 0 | H169: 0
A170: Pumpeinstallation Miljøklasse B (1.000-1.500 l/s) - SRO | B170: stk. | C170: 10 | D170: 0 | E170: 0 | F170: 0 | G170: 0 | H170: 0
A171: Overbygning | B171: m2 | C171: 75 | D171: 0 | E171: 0 | F171: 0 | G171: 0 | H171: 0
A172: Store pumpestationer: inkl. SRO-anlæg - Indre city
A173: Kælder | B173: m2 | C173: 75 | D173: 0 | E173: 0 | F173: 0 | G173: 0 | H173: 0
A174: Pumpeinstallation Miljøklasse A (100-300 l/s) - Mek/EL | B174: stk. | C174: 20 | D174: 0 | E174: 0 | F174: 0 | G174: 0 | H174: 0
A175: Pumpeinstallation Miljøklasse A (100-300 l/s) - SRO | B175: stk. | C175: 10 | D175: 0 | E175: 0 | F175: 0 | G175: 0 | H175: 0
A176: Pumpeinstallation Miljøklasse A (300-600 l/s) - Mek/EL | B176: stk. | C176: 20 | D176: 0 | E176: 0 | F176: 0 | G176: 0 | H176: 0
A177: Pumpeinstallation Miljøklasse A (300-600 l/s) - SRO | B177: stk. | C177: 10 | D177: 0 | E177: 0 | F177: 0 | G177: 0 | H177: 0
A178: Pumpeinstallation Miljøklasse A (600-1.000 l/s) - Mek/EL | B178: stk. | C178: 20 | D178: 0 | E178: 0 | F178: 0 | G178: 0 | H178: 0
A179: Pumpeinstallation Miljøklasse A (600-1.000 l/s) - SRO | B179: stk. | C179: 10 | D179: 0 | E179: 0 | F179: 0 | G179: 0 | H179: 0
A180: Pumpeinstallation Miljøklasse A (1.000-1.500 l/s) - Mek/EL | B180: stk. | C180: 20 | D180: 0 | E180: 0 | F180: 0 | G180: 0 | H180: 0
A181: Pumpeinstallation Miljøklasse A (1.000-1.500 l/s) - SRO | B181: stk. | C181: 10 | D181: 0 | E181: 0 | F181: 0 | G181: 0 | H181: 0
A182: Pumpeinstallation Miljøklasse B (100-300 l/s) - Mek/EL | B182: stk. | C182: 20 | D182: 0 | E182: 0 | F182: 0 | G182: 0 | H182: 0
A183: Pumpeinstallation Miljøklasse B (100-300 l/s) - SRO | B183: stk. | C183: 10 | D183: 0 | E183: 0 | F183: 0 | G183: 0 | H183: 0
A184: Pumpeinstallation Miljøklasse B (300-600 l/s) - Mek/EL | B184: stk. | C184: 20 | D184: 0 | E184: 0 | F184: 0 | G184: 0 | H184: 0
A185: Pumpeinstallation Miljøklasse B (300-600 l/s) - SRO | B185: stk. | C185: 10 | D185: 0 | E185: 0 | F185: 0 | G185: 0 | H185: 0
A186: Pumpeinstallation Miljøklasse B (600-1.000 l/s) - Mek/EL | B186: stk. | C186: 20 | D186: 0 | E186: 0 | F186: 0 | G186: 0 | H186: 0
A187: Pumpeinstallation Miljøklasse B (600-1.000 l/s) - SRO | B187: stk. | C187: 10 | D187: 0 | E187: 0 | F187: 0 | G187: 0 | H187: 0
A188: Pumpeinstallation Miljøklasse B (1.000-1.500 l/s) - Mek/EL | B188: stk. | C188: 20 | D188: 0 | E188: 0 | F188: 0 | G188: 0 | H188: 0
A189: Pumpeinstallation Miljøklasse B (1.000-1.500 l/s) - SRO | B189: stk. | C189: 10 | D189: 0 | E189: 0 | F189: 0 | G189: 0 | H189: 0
A190: Overbygning | B190: m2 | C190: 75 | D190: 0 | E190: 0 | F190: 0 | G190: 0 | H190: 0
A191: Overløbsbygværker - Land
A192: Kælder (< 7 m2) | B192: stk. | C192: 75 | D192: 32 | E192: 45 | F192: 46 | G192: 0.40625 | H192: 0.02222222222 | I192: præcisering af definition i vejledning
A193: Kælder (7 - 20 m2) | B193: m2 | C193: 75 | D193: 65 | E193: 156 | F193: =86+70 -> 156 | G193: 1.4 | H193: 0 | I193: præcisering af definition i vejledning
A194: Kælder (20 - 30 m2) | B194: m2 | C194: 75 | D194: 0 | E194: 0 | F194: 0 | G194: 0 | H194: 0
A195: Installationer (mindre end 7 m2) | B195: stk. | C195: 20 | D195: 12 | E195: 29 | F195: 30 | G195: =IF(D195="",IF(E195>0,"Ny data",IF(E195="","",0)),IF(D195=0,IF(E195=0,0,"Ny data"),(E195-D195)/D195)) -> 1.416666667 | H195: =IF(E195="",IF(F195>0,"Ny data",IF(F195="","",0)),IF(E195=0,IF(F195=0,0,"Ny data"),(F195-E195)/E195)) -> 0.03448275862 | I195: præcisering af definition i vejledning
A196: Installationer, Miljøklasse A. (7-20 m2) - Mek/EL | B196: stk. | C196: 20 | D196: 2 | E196: 8 | F196: 8 | G196: 3 | H196: 0 | I196: præcisering af definition i vejledning
A197: Installationer, Miljøklasse A. (7-20 m2) - SRO | B197: stk. | C197: 10 | D197: 2 | E197: 8 | F197: 8 | G197: 3 | H197: 0 | I197: præcisering af definition i vejledning
A198: Installationer, Miljøklasse A. (20-30 m2) - Mek/EL | B198: stk. | C198: 20 | D198: 0 | E198: 0 | F198: 0 | G198: 0 | H198: 0
A199: Installationer, Miljøklasse A. (20-30 m2) - SRO | B199: stk. | C199: 10 | D199: 0 | E199: 0 | F199: 0 | G199: 0 | H199: 0
A200: Installationer, Miljøklasse B. (7-20 m2) - Mek/EL | B200: stk. | C200: 20 | D200: 2 | E200: 11 | F200: 11 | G200: 4.5 | H200: 0 | I200: præcisering af definition i vejledning
A201: Installationer, Miljøklasse B. (7-20 m2) - SRO | B201: stk. | C201: 10 | D201: 2 | E201: 11 | F201: 11 | G201: 4.5 | H201: 0 | I201: præcisering af definition i vejledning
... 117 more rows

Sheet Fællesfunktionsanlæg
A1: Fællesfunktionsanlæg | B1: Enhed | C1: Standard-levetid | D1: Samlet mængde per 31/12-2022 | E1: Samlet mængde per 31/12-2023 | F1: Samlet mængde per 31/12-2024 | G1: Afvigelse 2022-2023 | H1: Afvigelse 2023-2024 | I1: Bemærkninger
A3: Andre | G3: =IF(D3="",IF(E3>0,"Ny data",IF(E3="","",0)),IF(D3=0,IF(E3=0,0,"Ny data"),(E3-D3)/D3)) ->  | H3: =IF(E3="",IF(F3>0,"Ny data",IF(F3="","",0)),IF(E3=0,IF(F3=0,0,"Ny data"),(F3-E3)/E3)) -> 
A4: Administrationbygninger | B4: m2 | C4: 75 | D4: 1989 | E4: 1989 | F4: 1989 | G4: 0 | H4: 0
A5: Arbejdsplads og kontor | B5: stk. | C5: 5 | D5: 38 | E5: 40 | F5: 50 | G5: 0.05263157895 | H5: 0.25 | I5: Envidrift og GIS
A6: Køretøjer, personbil | B6: stk. | C6: 5 | D6: 8 | E6: 8 | F6: 8 | G6: 0 | H6: 0
A7: Køretøjer, små lastvogne (< 3.500 kg.) | B7: stk. | C7: 5 | D7: 6 | E7: 7 | F7: 7 | G7: 0.1666666667 | H7: 0
A8: Køretøjer, store lastvogne (> 3.500 kg.) | B8: stk. | C8: 5 | D8: 2 | E8: 2 | F8: 2 | G8: 0 | H8: 0
A9: Køretøjer, entreprenørmaskiner | B9: stk. | C9: 5 | D9: 5 | E9: =5+4 -> 9 | F9: 18 | G9: 0.8 | H9: 1 | I9: Tilgange i 2023+2024
A10: Slamsugere | B10: stk. | C10: 5 | D10: 0 | E10: 0 | F10: 0 | G10: 0 | H10: 0
A11: Værksteder, garager | B11: m2 | C11: 75 | D11: 1982 | E11: =1982+100 -> 2082 | F11: 2082 | G11: 0.05045408678 | H11: 0
A12: Solcelleanlæg eksl. Inverter | B12: kWp | C12: 25 | D12: 0 | E12: 0 | F12: 0 | G12: 0 | H12: 0
A13: Inverter til solcelleanlæg | B13: kWp | C13: 10 | D13: 0 | E13: 0 | F13: 0 | G13: 0 | H13: 0
